bitfinex/quotes_BTCUSD_20250617
["timestamp","ask_amount","ask_price","bid_price","bid_amount"]
[1750176837502,0.00247541,104460.0,104450.0,0.5746085]
[1750176839425,0.00247541,104460.0,104450.0,0.4070885]
[1750176839630,0.6765825,104480.0,104460.0,0.21060664]
[1750176839850,0.01914543,104460.0,104450.0,0.37836783]
[1750176840094,0.01914543,104460.0,104450.0,0.54588783]
[1750176840320,0.03829004,104460.0,104450.0,0.5554616]
[1750176840543,0.03829004,104460.0,104450.0,0.5524616]
[1750176840750,0.0478629,104460.0,104450.0,0.31644178]
[1750176841018,0.22975153,104460.0,104450.0,0.28772093]
[1750176841221,0.0287203,104450.0,104440.0,0.2297958]
[1750176841424,0.2759534,104460.0,104450.0,0.21062689]
[1750176841658,0.2201795,104460.0,104450.0,0.22020057]
[1750176841861,0.2211795,104460.0,104450.0,0.22720057]
[1750176842083,0.02014507,104460.0,104450.0,0.23677397]
[1750176842303,0.02014507,104460.0,104450.0,0.24634728]
[1750176842516,0.0201447,104460.0,104450.0,0.24634728]
[1750176842741,0.02971728,104460.0,104450.0,0.31454728]
[1750176843163,0.02014461,104460.0,104450.0,0.31454728]
[1750176843393,0.02962629,104460.0,104450.0,0.4106965]
[1750176844017,0.01048131,104460.0,104450.0,0.31454728]
[1750176844446,0.02962638,104460.0,104450.0,0.31454728]
[1750176844658,0.0296262,104460.0,104450.0,0.48202728]
[1750176844865,0.0296262,104460.0,104450.0,0.41682728]
[1750176845090,0.0200538,104460.0,104450.0,0.41682728]
[1750176845506,0.0009091,104460.0,104450.0,0.41682728]
[1750176845715,0.0009091,104460.0,104450.0,0.6538577]
[1750176846991,0.0104814,104460.0,104450.0,0.57566904]
[1750176847199,0.0009091,104460.0,104450.0,0.57566904]
[1750176848704,0.0009091,104460.0,104450.0,1.00437019]
[1750176848953,0.0009091,104460.0,104450.0,0.59020989]
[1750176849707,0.0009091,104460.0,104450.0,0.58720989]
[1750176849923,0.0009091,104460.0,104450.0,0.68335911]
[1750176850149,0.0009091,104460.0,104450.0,0.68735911]
[1750176850150,0.0019091,104460.0,104450.0,0.68735911]
[1750176850623,0.001,104460.0,104450.0,0.68035911]
[1750176850866,0.001,104460.0,104450.0,0.68635911]
[1750176851091,0.001,104460.0,104450.0,0.59020989]
[1750176851810,0.001,104460.0,104450.0,0.63728989]
[1750176852277,0.001,104460.0,104450.0,1.05145019]
[1750176852503,0.001,104460.0,104450.0,0.83693019]
[1750176852735,0.59350957,104480.0,104460.0,0.22017867]
[1750176852945,0.59350957,104480.0,104470.0,0.16744]
[1750176852946,0.62560957,104480.0,104470.0,0.16744]
[1750176853168,0.62560957,104480.0,104470.0,0.35888251]
[1750176853599,0.66511795,104480.0,104470.0,0.36845463]
[1750176853815,0.66511795,104480.0,104470.0,0.37802657]
[1750176854052,0.66511795,104480.0,104470.0,0.21058657]
[1750176854270,0.66511795,104480.0,104470.0,0.36845463]
[1750176854710,0.66611795,104480.0,104470.0,0.36845463]
[1750176855154,0.66611795,104480.0,104470.0,0.37902666]
[1750176855443,0.63401795,104480.0,104470.0,0.3885986]
[1750176855652,0.63401795,104480.0,104470.0,0.39817045]
[1750176855866,0.63301795,104480.0,104470.0,0.39817045]
[1750176856088,0.63301795,104480.0,104470.0,0.001]
[1750176856344,0.66521795,104480.0,104470.0,0.36088251]
[1750176856544,0.66521795,104480.0,104470.0,0.38002666]
[1750176858037,0.63301642,104480.0,104470.0,0.38959851]
[1750176858243,0.64258744,104480.0,104470.0,0.39917026]
[1750176858454,0.6521581,104480.0,104470.0,0.40874192]
[1750176858661,0.6521581,104480.0,104470.0,0.39917026]
[1750176858860,0.6521581,104480.0,104470.0,0.40874192]
[1750176859502,0.6521581,104480.0,104470.0,0.40874082]
[1750176859698,0.6521581,104480.0,104470.0,0.39916934]
[1750176859699,0.66172921,104480.0,104470.0,0.39916934]
[1750176860537,0.46073391,104480.0,104470.0,0.40878082]
[1750176860756,0.45116289,104480.0,104470.0,0.40878082]
[1750176860961,0.46073281,104480.0,104470.0,0.40878082]
[1750176861171,0.46073281,104480.0,104470.0,0.56913004]
[1750176861374,0.45116215,104480.0,104470.0,0.56913004]
[1750176861598,0.47030374,104480.0,104470.0,0.27274082]
[1750176861812,0.47030374,104480.0,104470.0,0.24134082]
[1750176861813,0.67129986,104480.0,104470.0,0.24134082]
[1750176862034,0.67129986,104480.0,104470.0,0.40874082]
[1750176862250,0.67129986,104480.0,104470.0,0.38959814]
[1750176862457,0.67129986,104480.0,104470.0,0.39916971]
[1750176862666,0.47030447,104480.0,104470.0,0.40874119]
[1750176862873,0.47030447,104480.0,104470.0,0.24134119]
[1750176863087,0.72790023,104480.0,104470.0,0.39916971]
[1750176863727,0.64258753,104480.0,104470.0,0.37041463]
[1750176863930,0.67578753,104480.0,104470.0,0.37998666]
[1750176864134,0.67578753,104480.0,104470.0,0.3895586]
[1750176864346,0.67578753,104480.0,104470.0,0.36084251]
[1750176864347,0.65664549,104480.0,104470.0,0.36084251]
[1750176864985,1.07080579,104480.0,104470.0,0.1694]
[1750176865200,0.78449471,104480.0,104470.0,0.1694]
[1750176865653,0.68834549,104480.0,104470.0,0.1694]
[1750176866500,0.68834549,104480.0,104470.0,0.00204]
[1750176866715,0.68834549,104480.0,104470.0,0.1694]
[1750176867145,0.68834549,104480.0,104470.0,0.00204]
[1750176867361,1.26986579,104480.0,104470.0,0.00204]
[1750176867561,1.38897656,104480.0,104470.0,0.00204]
[1750176867775,1.72897656,104480.0,104470.0,0.00204]
[1750176868231,1.82521832,104480.0,104470.0,0.00204]
[1750176869785,2.23937862,104480.0,104470.0,0.00204]
[1750176869992,1.85391932,104480.0,104470.0,0.00204]
[1750176870201,1.41105802,104480.0,104470.0,0.00204]
[1750176870409,1.82521832,104480.0,104470.0,0.00204]
[1750176870876,1.7290691,104480.0,104470.0,0.00204]
[1750176873893,1.7760691,104480.0,104470.0,0.00204]
[1750176875943,2.2189304,104480.0,104470.0,0.00204]
[1750176876779,0.55060627,104460.0,104450.0,4e-05]
[1750176876984,1.21734812,104460.0,104450.0,4e-05]
[1750176877394,1.31349734,104460.0,104450.0,4e-05]
[1750176878312,1.31349734,104460.0,104450.0,0.00604]
[1750176878586,1.31349734,104460.0,104450.0,0.00904]
[1750176878835,1.14617734,104460.0,104450.0,0.00904]
[1750176879034,1.26434812,104460.0,104450.0,0.00604]
[1750176879244,1.24138657,104460.0,104450.0,0.00604]
[1750176879457,0.8164603,104460.0,104450.0,0.00604]
[1750176879666,1.24138657,104460.0,104450.0,0.00104]
[1750176880518,1.24138657,104460.0,104450.0,0.00204]
[1750176881396,1.33753579,104460.0,104450.0,0.00204]
[1750176881855,1.43377755,104460.0,104450.0,0.00204]
[1750176883659,1.45668759,104460.0,104450.0,0.00204]
[1750176884949,0.94637807,104460.0,104450.0,0.00204]
[1750176885164,1.12330833,104460.0,104450.0,0.00204]
[1750176885589,1.33758833,104460.0,104450.0,0.00204]
[1750176888706,1.29054833,104460.0,104450.0,0.00204]
[1750176888923,0.70914803,104460.0,104450.0,0.00204]
[1750176889191,1.33758833,104460.0,104450.0,0.00204]
[1750176889395,1.43373755,104460.0,104450.0,0.00204]
[1750176889855,1.24235519,104460.0,104450.0,0.00204]
[1750176890321,1.33758833,104460.0,104450.0,0.00204]
[1750176890569,1.36630733,104460.0,104450.0,0.00204]
[1750176891019,1.61273031,104460.0,104450.0,0.00204]
[1750176891242,1.63563111,104460.0,104450.0,0.00204]
[1750176891480,1.61273031,104460.0,104450.0,0.00204]
[1750176891700,1.70887953,104460.0,104450.0,0.00204]
[1750176892142,1.70302124,104460.0,104450.0,0.00204]
[1750176892362,1.51754024,104460.0,104450.0,0.00204]
[1750176892581,1.73178024,104460.0,104450.0,0.00204]
[1750176892802,1.70302124,104460.0,104450.0,0.00204]
[1750176893019,1.73178024,104460.0,104450.0,0.00204]
[1750176893233,1.70302124,104460.0,104450.0,0.00204]
[1750176893446,1.73178024,104460.0,104450.0,0.00204]
[1750176894664,1.70302124,104460.0,104450.0,0.00204]
[1750176895175,0.57350698,104460.0,104450.0,0.20309312]
[1750176895437,0.57350698,104460.0,104450.0,0.3726641]
[1750176895438,0.02871737,104460.0,104450.0,0.3726641]
[1750176895679,0.35914488,104460.0,104450.0,0.3726641]
[1750176895917,0.36871764,104460.0,104450.0,0.3726641]
[1750176896413,0.37829049,104460.0,104450.0,0.3726641]
[1750176896659,0.36871764,104460.0,104450.0,0.3726641]
[1750176897130,0.37829049,104460.0,104450.0,0.3726641]
[1750176897388,0.20103111,104470.0,104450.0,0.3726641]
[1750176897623,0.20103111,104470.0,104460.0,0.28507931]
[1750176897624,0.72733498,104470.0,104460.0,0.28507931]
[1750176897867,0.34957148,104470.0,104460.0,0.29465171]
[1750176898101,0.01914323,104470.0,104460.0,0.29465088]
[1750176898302,0.01914314,104470.0,104460.0,0.29465088]
[1750176898729,0.36014314,104470.0,104460.0,0.29465088]
[1750176899392,0.002,104470.0,104460.0,0.29465088]
[1750176899610,0.02114296,104470.0,104460.0,0.29465088]
[1750176899829,0.01157139,104470.0,104460.0,0.29465088]
[1750176900018,0.002,104470.0,104460.0,0.29465088]
[1750176900300,0.0105713,104470.0,104460.0,0.29465088]
[1750176900524,0.0105713,104470.0,104460.0,0.98523068]
[1750176900525,0.001,104470.0,104460.0,0.98523068]
[1750176900762,0.51890912,104490.0,104480.0,0.2824367]
[1750176900984,0.51890912,104490.0,104480.0,0.28243689]
[1750176900985,0.84933966,104490.0,104480.0,0.28243689]
[1750176901206,1.05031564,104490.0,104480.0,0.25372419]
[1750176901404,1.05031564,104490.0,104470.0,0.27196964]
[1750176901405,0.01914159,104480.0,104470.0,0.27196964]
[1750176901681,0.19142419,104480.0,104470.0,0.27196964]
[1750176901906,0.01914296,104470.0,104460.0,0.27254827]
[1750176902136,0.03271453,104470.0,104460.0,0.44920103]
[1750176902359,0.03271453,104470.0,104460.0,0.28112103]
[1750176902360,0.02871453,104470.0,104460.0,0.28112103]
[1750176902579,0.03828647,104470.0,104460.0,0.28112103]
[1750176902819,0.04781831,104470.0,104460.0,0.28112103]
[1750176903034,0.23926082,104470.0,104460.0,0.28112103]
[1750176903253,0.04781822,104470.0,104460.0,0.28112103]
[1750176903469,0.23926146,104470.0,104460.0,0.27154863]
[1750176903926,0.67980068,104470.0,104460.0,0.23117642]
[1750176904146,0.6041197,104470.0,104460.0,0.00014254]
[1750176904370,0.19744251,104470.0,104460.0,0.00114254]
[1750176904589,0.19744251,104470.0,104460.0,0.21174918]
[1750176904590,0.21658648,104470.0,104460.0,0.21174918]
[1750176904813,0.22615814,104470.0,104460.0,0.26667642]
[1750176905034,0.30316376,104470.0,104460.0,0.00114254]
[1750176905249,0.21001454,104470.0,104460.0,0.19260338]
[1750176905472,0.21001454,104470.0,104460.0,0.20217633]
[1750176905691,0.21001454,104470.0,104460.0,0.00114254]
[1750176905916,0.6131197,104470.0,104460.0,0.00114254]
[1750176906146,0.70926892,104470.0,104460.0,0.00114254]
[1750176906884,0.29659173,104470.0,104460.0,0.00118254]
[1750176907403,0.20044251,104470.0,104460.0,0.19264338]
[1750176907621,0.21001445,104470.0,104460.0,0.25544338]
[1750176907844,0.20044251,104470.0,104460.0,0.26501642]
[1750176908269,0.20044251,104470.0,104460.0,0.27458937]
[1750176908490,0.20044251,104470.0,104460.0,0.28416213]
[1750176908705,0.20044251,104470.0,104460.0,0.27458937]
[1750176908956,0.20044251,104470.0,104460.0,0.06398254]
[1750176909169,0.20044251,104470.0,104460.0,0.26501642]
[1750176909801,0.29659173,104470.0,104460.0,0.03308254]
[1750176910242,0.29659173,104470.0,104460.0,0.00118254]
[1750176910699,0.21958648,104470.0,104460.0,0.28596204]
[1750176911198,0.20044251,104470.0,104460.0,0.03318254]
[1750176911448,0.6131197,104470.0,104460.0,0.00118254]
[1750176911661,1.10996146,104470.0,104460.0,0.00118254]
[1750176911951,3.66597813,104350.0,104340.0,1.30823597]
[1750176912183,1.29476343,104350.0,104340.0,7.53876782]
[1750176912389,0.34957414,104440.0,104420.0,0.02872901]
[1750176912605,0.3687226,104440.0,104430.0,0.00957579]
[1750176912860,0.36872251,104440.0,104420.0,0.39682182]
[1750176913293,0.56979695,104440.0,104420.0,0.37814593]
[1750176913511,0.56979443,104440.0,104420.0,0.39729815]
[1750176913734,0.57936966,104440.0,104420.0,0.22072218]
[1750176913951,0.57936966,104440.0,104420.0,0.40687439]
[1750176914178,0.30256966,104440.0,104430.0,0.09624176]
[1750176914421,0.00957496,104430.0,104420.0,0.47436412]
[1750176914637,0.47734873,104440.0,104430.0,0.19251584]
[1750176914861,0.35457405,104440.0,104430.0,0.31748423]
[1750176915090,0.36414828,104440.0,104430.0,0.29833339]
[1750176915315,0.35457405,104440.0,104430.0,0.31748451]
[1750176915532,0.3687226,104440.0,104430.0,0.32606002]
[1750176915747,0.37829701,104440.0,104430.0,0.3260602]
[1750176915962,0.57937003,104440.0,104430.0,0.26320176]
[1750176916173,0.36972296,104440.0,104430.0,0.47386899]
[1750176916666,0.36972296,104440.0,104430.0,0.49301992]
[1750176916891,0.37929746,104440.0,104430.0,0.4834445]
[1750176917109,1.08919616,104440.0,104430.0,0.26320176]
[1750176917324,0.49907255,104440.0,104430.0,0.48344432]
[1750176917536,0.41249802,104440.0,104430.0,0.47386899]
[1750176917742,0.41749802,104440.0,104430.0,0.47486899]
[1750176917952,0.40792333,104440.0,104430.0,0.47486899]
[1750176918182,0.39834873,104440.0,104430.0,0.47486899]
[1750176918399,0.41749801,104440.0,104430.0,0.47486909]
[1750176918618,0.70514474,104440.0,104430.0,0.26420176]
[1750176918833,0.72857042,104440.0,104430.0,0.27377755]
[1750176919045,1.29303216,104440.0,104430.0,0.06838127]
[1750176919256,0.00957496,104430.0,104420.0,0.39266302]
[1750176919462,0.67976097,104430.0,104420.0,0.49848084]
[1750176919885,1.02921702,104430.0,104420.0,0.19200959]
[1750176920103,1.14241757,104430.0,104420.0,0.2015862]
[1750176920322,1.12326664,104430.0,104420.0,0.23031503]
[1750176920543,1.12326664,104430.0,104420.0,0.2015862]
[1750176920544,1.14241757,104430.0,104420.0,0.2015862]
[1750176920773,1.14241757,104430.0,104420.0,0.2121629]
[1750176920774,1.24856679,104430.0,104420.0,0.2121629]
[1750176920983,0.57460764,104430.0,104420.0,0.22173942]
[1750176921407,0.58860764,104430.0,104420.0,0.22273942]
[1750176921638,0.78969909,104430.0,104420.0,0.2131629]
[1750176921856,0.59818315,104430.0,104420.0,0.22273942]
[1750176922089,0.8762738,104430.0,104420.0,0.00247541]
[1750176922315,0.00957615,104420.0,104410.0,0.2347947]
[1750176922539,0.43225863,104420.0,104410.0,0.31658697]
[1750176922760,0.41310651,104420.0,104410.0,0.32616395]
[1750176922998,0.42268239,104420.0,104410.0,0.32616395]
[1750176923220,0.44183488,104420.0,104410.0,0.20119079]
[1750176923437,0.47503479,104420.0,104410.0,0.20119079]
[1750176923880,0.52418783,104420.0,104410.0,0.20119079]
[1750176924108,0.61037303,104420.0,104410.0,0.19161335]
[1750176924349,0.79233133,104420.0,104410.0,0.20122123]
[1750176924568,0.79233133,104420.0,104410.0,0.19164361]
[1750176924819,0.79833133,104420.0,104410.0,0.20222114]
[1750176925031,0.59722054,104420.0,104410.0,0.20222114]
[1750176925509,0.52203525,104420.0,104410.0,0.20222114]
[1750176925728,0.57139352,104420.0,104410.0,0.21179849]
[1750176925945,0.57139352,104420.0,104410.0,0.20222123]
[1750176925946,0.76292807,104420.0,104410.0,0.20222123]
[1750176926160,0.77250477,104420.0,104410.0,0.0106687]
[1750176926372,0.57139389,104420.0,104410.0,0.21179876]
[1750176926583,0.86351058,104420.0,104410.0,0.00109108]
[1750176926819,0.66240015,104420.0,104410.0,0.21179867]
[1750176927038,0.66240015,104420.0,104410.0,0.21179876]
[1750176927039,0.85393433,104420.0,104410.0,0.21179876]
[1750176927261,0.64324702,104420.0,104410.0,0.23095355]
[1750176927480,0.64324665,104420.0,104410.0,0.2213762]
[1750176927699,0.65282317,104420.0,104410.0,0.23095355]
[1750176927915,0.85393405,104420.0,104410.0,0.00109108]
[1750176928136,0.85393405,104420.0,104410.0,0.02024623]
[1750176928372,0.65282317,104420.0,104410.0,0.21179876]
[1750176928602,0.54266441,104420.0,104410.0,0.24053034]
[1750176928842,0.498617,104420.0,104410.0,0.24053052]
[1750176929028,0.559817,104420.0,104410.0,0.22137611]
[1750176929278,0.54066432,104420.0,104410.0,0.23095318]
[1750176929506,0.47946432,104420.0,104410.0,0.24053016]
[1750176929760,0.48904047,104420.0,104410.0,0.24053016]
[1750176929979,0.47946441,104420.0,104410.0,0.24053016]
[1750176930443,0.43968257,104420.0,104410.0,0.24053016]
[1750176930661,0.43968257,104420.0,104410.0,0.23095318]
[1750176930662,0.44925882,104420.0,104410.0,0.23095318]
[1750176930881,0.49043516,104420.0,104410.0,0.22137611]
[1750176931109,0.51395882,104420.0,104410.0,0.23095336]
[1750176931326,0.52353516,104420.0,104410.0,0.24052997]
[1750176931546,0.53311177,104420.0,104410.0,0.21179849]
[1750176931790,0.52353516,104420.0,104410.0,0.22137574]
[1750176932017,0.51395882,104420.0,104410.0,0.23095281]
[1750176932258,0.51395882,104420.0,104410.0,0.22137574]
[1750176932476,0.52353525,104420.0,104410.0,0.23095281]
[1750176932910,0.51395882,104420.0,104410.0,0.23095281]
[1750176933126,0.52353525,104420.0,104410.0,0.22137574]
[1750176933357,0.52353525,104420.0,104410.0,0.23095272]
[1750176933358,0.51395882,104420.0,104410.0,0.23095272]
[1750176933602,0.52353525,104420.0,104410.0,0.23095281]
[1750176933801,0.51395882,104420.0,104410.0,0.23095281]
[1750176934012,0.52353525,104420.0,104410.0,0.23095281]
[1750176934438,0.52353516,104420.0,104410.0,0.23095281]
[1750176934645,0.52353516,104420.0,104410.0,0.24052979]
[1750176934868,0.53311177,104420.0,104410.0,0.22137593]
[1750176935080,0.53311177,104420.0,104410.0,0.21179858]
[1750176935296,0.53311177,104420.0,104410.0,0.20222123]
[1750176935517,0.77464595,104420.0,104410.0,0.20222123]
[1750176935753,1.60474973,104420.0,104410.0,0.00109108]
[1750176936190,1.19164322,104420.0,104410.0,0.00109108]
[1750176937077,1.27688498,104420.0,104410.0,0.00109108]
[1750176937310,1.85083149,104420.0,104410.0,9.108e-05]
[1750176937537,1.44072498,104420.0,104410.0,9.108e-05]
[1750176937972,1.43772498,104420.0,104410.0,0.01209108]
[1750176938195,1.17473576,104420.0,104410.0,0.01209108]
[1750176938426,1.34157576,104420.0,104410.0,0.01209108]
[1750176938899,1.33857576,104420.0,104410.0,0.01209108]
[1750176939114,1.33957576,104420.0,104410.0,0.01209108]
[1750176939338,1.75268227,104420.0,104410.0,0.01209108]
[1750176939573,1.84883149,104420.0,104410.0,0.01209108]
[1750176940308,1.43572498,104420.0,104410.0,0.01209108]
[1750176940737,1.38633576,104420.0,104410.0,0.01209108]
[1750176940959,0.83022749,104420.0,104410.0,0.01209108]
[1750176941188,1.16074264,104420.0,104410.0,0.01209108]
[1750176941404,1.15116603,104420.0,104410.0,0.01209108]
[1750176941628,1.48168118,104420.0,104410.0,0.01209108]
[1750176941817,1.53788794,104420.0,104410.0,0.01209108]
[1750176942060,1.48168118,104420.0,104410.0,0.01209108]
[1750176942707,1.48164118,104420.0,104410.0,0.01209108]
[1750176943371,1.31484118,104420.0,104410.0,0.01209108]
[1750176943813,1.48164118,104420.0,104410.0,0.01209108]
[1750176944707,0.98432603,104420.0,104410.0,0.01209108]
[1750176945150,0.74266718,104420.0,104410.0,0.23237537]
[1750176945373,0.75224352,104420.0,104410.0,0.22279839]
[1750176945597,0.76182004,104420.0,104410.0,0.23237555]
[1750176945812,0.75224352,104420.0,104410.0,0.2515296]
[1750176946042,0.78224352,104420.0,104410.0,0.24195262]
[1750176946261,0.79182004,104420.0,104410.0,0.23237555]
[1750176946481,0.78224352,104420.0,104410.0,0.2515296]
[1750176946686,0.80476718,104420.0,104410.0,0.24195262]
[1750176946900,0.81434352,104420.0,104410.0,0.2515296]
[1750176947111,0.81434352,104420.0,104410.0,0.22279839]
[1750176947290,0.82391995,104420.0,104410.0,0.22279839]
[1750176947550,0.83349656,104420.0,104410.0,0.23237555]
[1750176947780,0.82391995,104420.0,104410.0,0.2515296]
[1750176947991,0.81434352,104420.0,104410.0,0.2515296]
[1750176948203,0.81434352,104420.0,104410.0,0.24195262]
[1750176948415,0.48382837,104420.0,104410.0,0.24195262]
[1750176948628,0.78434343,104420.0,104410.0,0.2515296]
[1750176948860,0.78434343,104420.0,104410.0,0.24195262]
[1750176949071,0.78434343,104420.0,104410.0,0.2515296]
[1750176949511,0.79391995,104420.0,104410.0,0.24195262]
[1750176949732,0.78434343,104420.0,104410.0,0.2515296]
[1750176949941,0.79391977,104420.0,104410.0,0.2515296]
[1750176950157,0.80349629,104420.0,104410.0,0.24195262]
[1750176950582,0.50308114,104420.0,104410.0,0.2515296]
[1750176950792,0.82401977,104420.0,104410.0,0.2515296]
[1750176951032,0.82401977,104420.0,104410.0,0.23237555]
[1750176951243,0.82401977,104420.0,104410.0,0.2515296]
[1750176951464,0.8335962,104420.0,104410.0,0.2515296]
[1750176952099,0.82401977,104420.0,104410.0,0.2515296]
[1750176952331,0.47435203,104420.0,104410.0,0.2515296]
[1750176952591,0.67351515,104420.0,104410.0,0.2515296]
[1750176952840,0.67351515,104420.0,104410.0,0.36231221]
[1750176952841,0.003,104420.0,104410.0,0.36231221]
[1750176953101,0.33351515,104420.0,104410.0,0.36231221]
[1750176953338,0.33351515,104420.0,104410.0,0.01209108]
[1750176953339,1.08386683,104420.0,104410.0,0.01209108]
[1750176953605,1.42386683,104420.0,104410.0,0.01209108]
[1750176953809,1.4142904,104420.0,104410.0,0.01209108]
[1750176954931,3.5334803,104350.0,104340.0,1.01954473]
[1750176955141,3.5334803,104350.0,104340.0,3.21364671]
[1750176955380,3.5334803,104350.0,104340.0,3.23381379]
[1750176955807,3.5334803,104350.0,104340.0,2.66786364]
[1750176956017,3.5334803,104350.0,104340.0,2.46357264]
[1750176956228,3.5334803,104350.0,104340.0,2.46370918]
[1750176956435,3.5384803,104350.0,104340.0,2.46370918]
[1750176956645,3.5394803,104350.0,104340.0,2.84155901]
[1750176957112,3.5394803,104350.0,104340.0,2.02296471]
[1750176957344,3.5394803,104350.0,104340.0,1.98666471]
[1750176957520,3.5394803,104350.0,104340.0,2.20014471]
[1750176957992,3.5394803,104350.0,104340.0,1.97954371]
[1750176958426,3.5394803,104350.0,104340.0,1.76606371]
[1750176958640,3.5394803,104350.0,104340.0,1.97954371]
[1750176959105,3.5394803,104350.0,104340.0,1.64902856]
[1750176959338,3.5394803,104350.0,104340.0,1.81282371]
[1750176959556,3.5394803,104350.0,104340.0,1.97950371]
[1750176959778,3.5394803,104350.0,104340.0,1.42623056]
[1750176960025,3.5394803,104350.0,104340.0,1.13980856]
[1750176960234,3.5394803,104350.0,104340.0,0.63526771]
[1750176960464,3.5394803,104350.0,104340.0,0.65310271]
[1750176960717,3.86999545,104350.0,104340.0,0.59824271]
[1750176960929,3.5344803,104350.0,104340.0,0.61278356]
[1750176961155,3.53467628,104350.0,104340.0,0.61278356]
[1750176961371,3.54067628,104350.0,104340.0,0.95278356]
[1750176961600,3.53967628,104350.0,104340.0,0.94378356]
[1750176962069,3.53467628,104350.0,104340.0,0.94378356]
[1750176962289,3.54267628,104350.0,104340.0,0.94378356]
[1750176962785,3.54767628,104350.0,104340.0,0.94378356]
[1750176965107,3.90909143,104350.0,104340.0,0.36110251]
[1750176965329,3.94139143,104350.0,104340.0,0.48449038]
[1750176965553,3.54767628,104350.0,104340.0,0.48449038]
[1750176965995,3.54267628,104350.0,104340.0,0.48449038]
[1750176966218,3.54267628,104350.0,104340.0,0.49903123]
[1750176966434,3.55067628,104350.0,104340.0,0.49903123]
[1750176966647,3.93639143,104350.0,104340.0,0.53792772]
[1750176966861,3.93639143,104350.0,104340.0,0.37124772]
[1750176967314,3.92739143,104350.0,104340.0,0.53788772]
[1750176967538,3.93739143,104350.0,104340.0,0.53788772]
[1750176967754,3.93739143,104350.0,104340.0,0.48445038]
[1750176968231,3.92739143,104350.0,104340.0,0.31781038]
[1750176968445,3.60687628,104350.0,104340.0,0.48449038]
[1750176968913,3.61487628,104350.0,104340.0,0.35616951]
[1750176969139,3.94539143,104350.0,104340.0,0.53739036]
[1750176969795,0.40391113,104350.0,104340.0,0.37071036]
[1750176970015,2.29904931,104300.0,104290.0,4.93029878]
[1750176970282,2.54093032,104300.0,104290.0,5.61880619]
[1750176970515,2.54093032,104300.0,104290.0,4.81679719]
[1750176970740,2.54093032,104300.0,104290.0,4.10993219]
[1750176970965,2.34360197,104300.0,104290.0,4.65866138]
[1750176971193,2.20577197,104300.0,104290.0,4.65866138]
[1750176971419,2.20577197,104300.0,104290.0,4.30139461]
[1750176971420,1.78498415,104300.0,104290.0,4.30139461]
[1750176971638,1.78498415,104300.0,104290.0,3.80261723]
[1750176971878,1.79198415,104300.0,104290.0,2.84952264]
[1750176972171,1.79198415,104300.0,104290.0,3.07848449]
[1750176972455,1.79198415,104300.0,104290.0,3.00848449]
[1750176972658,1.79198415,104300.0,104290.0,2.79516449]
[1750176973150,1.79198415,104300.0,104290.0,3.00848449]
[1750176973369,1.79198415,104300.0,104290.0,2.71481549]
[1750176973595,1.79198415,104300.0,104290.0,2.09784434]
[1750176973818,1.79198415,104300.0,104290.0,2.59503949]
[1750176974051,1.79198415,104300.0,104290.0,2.26452434]
[1750176974276,1.79198415,104300.0,104290.0,2.59503949]
[1750176975142,1.79198415,104300.0,104290.0,2.42835949]
[1750176975358,1.79198415,104300.0,104290.0,2.59503949]
[1750176975592,1.79198415,104300.0,104290.0,2.22835949]
[1750176975804,1.79198415,104300.0,104290.0,2.39503949]
[1750176976032,1.79198415,104300.0,104290.0,1.54588349]
[1750176976249,1.79198415,104300.0,104290.0,0.84659034]
[1750176976461,1.79198415,104300.0,104290.0,1.31384549]
[1750176976751,1.79198415,104300.0,104290.0,1.65384549]
[1750176977180,1.79198415,104300.0,104290.0,1.67303549]
[1750176979440,1.79198415,104300.0,104290.0,1.50635549]
[1750176979657,1.79198415,104300.0,104290.0,1.54944149]
[1750176980115,1.79198415,104300.0,104290.0,1.33612149]
[1750176980338,1.79198415,104300.0,104290.0,1.34700149]
[1750176980616,1.79198415,104300.0,104290.0,0.83061634]
[1750176980828,1.79198415,104300.0,104290.0,0.99729634]
[1750176981056,1.78498415,104300.0,104290.0,0.83061634]
[1750176981273,1.82960172,104300.0,104290.0,0.99729634]
[1750176981483,1.81478632,104300.0,104290.0,0.99729634]
[1750176981932,1.81478632,104300.0,104290.0,0.83061634]
[1750176982150,1.81478632,104300.0,104290.0,0.99729634]
[1750176982393,1.81478632,104300.0,104290.0,0.78397634]
[1750176982598,1.81478632,104300.0,104290.0,0.99729634]
[1750176983097,1.81478632,104300.0,104290.0,0.80165629]
[1750176983098,1.80878632,104300.0,104290.0,0.80165629]
[1750176983338,1.80778632,104300.0,104290.0,0.96833629]
[1750176983584,2.14830147,104300.0,104290.0,0.40047544]
[1750176983815,2.14830147,104300.0,104290.0,0.36222145]
[1750176984036,1.81802161,104300.0,104290.0,0.16982279]
[1750176984259,1.83819632,104300.0,104290.0,0.15923455]
[1750176984497,2.35246602,104300.0,104290.0,0.15923455]
[1750176984724,2.35246602,104300.0,104290.0,0.06297606]
[1750176984725,2.58670962,104300.0,104290.0,0.06297606]
[1750176984971,0.0634,104280.0,104270.0,4e-05]
[1750176985184,0.0634,104280.0,104270.0,0.20058287]
[1750176985185,0.73401913,104280.0,104270.0,0.20058287]
[1750176985401,0.08257784,104280.0,104270.0,0.20058287]
[1750176985636,1.01155088,104280.0,104270.0,0.00014276]
[1750176985854,1.13655088,104280.0,104270.0,0.00014276]
[1750176986080,1.03532896,104280.0,104270.0,0.19195248]
[1750176986302,0.95081922,104280.0,104270.0,0.20154287]
[1750176986529,0.62305872,104280.0,104270.0,0.00014276]
[1750176986757,0.17675696,104280.0,104270.0,0.00973324]
[1750176987013,0.34691678,104280.0,104270.0,0.20154296]
[1750176987219,0.76112283,104280.0,104270.0,0.20154296]
[1750176987442,0.52053018,104280.0,104270.0,0.00014276]
[1750176987659,1.40017314,104280.0,104270.0,0.00014276]
[1750176987871,1.47717314,104280.0,104270.0,0.00114276]
[1750176988092,1.80758376,104280.0,104270.0,0.00114276]
[1750176988323,0.12219085,104260.0,104250.0,0.19398643]
[1750176988541,0.54598766,104260.0,104250.0,0.20367004]
[1750176988770,0.47680605,104260.0,104250.0,0.2132619]
[1750176988990,0.48202262,104270.0,104260.0,0.0095914]
[1750176989211,0.00959076,104260.0,104250.0,0.30950376]
[1750176989508,0.43338757,104260.0,104250.0,0.48957571]
[1750176989718,0.43579672,104260.0,104250.0,0.50875916]
[1750176989938,0.072,104260.0,104250.0,0.23244572]
[1750176990162,0.072,104260.0,104250.0,0.40288572]
[1750176990385,0.09118133,104260.0,104250.0,0.40288572]
[1750176990602,0.09118133,104260.0,104250.0,0.39329404]
[1750176990603,0.51497832,104260.0,104250.0,0.39329404]
[1750176990833,0.51497832,104260.0,104250.0,0.4028859]
[1750176991051,0.50538738,104260.0,104250.0,0.4028859]
[1750176991282,0.51497841,104260.0,104250.0,0.41247767]
[1750176991494,0.51497841,104260.0,104250.0,0.39329404]
[1750176991711,0.51497841,104260.0,104250.0,0.4028859]
[1750176991935,0.57807841,104260.0,104250.0,0.22285404]
[1750176992191,0.36529179,104260.0,104250.0,0.37410986]
[1750176992409,0.16387236,104260.0,104250.0,0.22285368]
[1750176992629,0.14469076,104260.0,104250.0,0.23244536]